bitfinex/quotes_ETHUSD_20241212
["timestamp","ask_amount","ask_price","bid_price","bid_amount"]
[1733988710049,0.23775346,3926.8,3926.7,0.09689558]
[1733988716117,0.13225839,3927.1,3926.7,0.09689558]
[1733988716410,0.23778095,3927.0,3926.7,0.09689558]
[1733988716705,0.23779625,3926.9,3926.7,0.09689558]
[1733988716879,0.23779625,3926.8,3926.7,0.09689558]
[1733988719286,2.54656,3926.9,3926.7,0.09689558]
[1733988719484,4.61711875,3926.8,3926.7,0.09689558]
[1733988719680,4.99764354,3926.8,3926.7,0.09689558]
[1733988720724,5.87770327,3926.8,3926.7,0.09689558]
[1733988721001,7.19777494,3926.8,3926.7,0.09689558]
[1733988721153,8.26383255,3926.8,3926.7,0.09689558]
[1733988721357,9.54473062,3926.8,3926.7,0.09689558]
[1733988721803,9.54301629,3926.8,3926.7,0.09689558]
[1733988722007,9.54303206,3926.8,3926.7,0.09689558]
[1733988722690,8.47867301,3926.8,3926.7,0.09689558]
[1733988723258,2.54704,3926.2,3925.6,1.3298]
[1733988723454,0.23780526,3926.1,3925.6,1.3298]
[1733988723706,0.23780526,3926.0,3925.6,1.3298]
[1733988723860,0.93044179,3926.4,3925.6,1.3298]
[1733988724062,0.55,3926.2,3925.6,1.3298]
[1733988724261,0.23777793,3926.1,3925.6,1.3298]
[1733988724502,0.55,3926.2,3925.6,1.3298]
[1733988724655,2.78480454,3926.1,3925.6,1.3298]
[1733988724858,2.54705,3926.1,3925.6,1.3298]
[1733988725957,0.23772525,3926.0,3925.6,1.3298]
[1733988726166,2.54705,3926.1,3925.6,1.3298]
[1733988726522,0.23771132,3926.0,3925.6,1.3298]
[1733988726817,2.90767202,3926.1,3925.6,1.3298]
[1733988727093,0.23773311,3926.0,3925.6,1.3298]
[1733988727261,2.90767202,3926.1,3925.6,1.3298]
[1733988727462,2.78487472,3926.0,3925.6,1.3298]
[1733988727695,2.9676067,3926.0,3925.6,1.3298]
[1733988729725,0.4204667,3926.0,3925.6,1.3298]
[1733988729928,2.54728,3925.8,3925.6,1.3298]
[1733988730403,2.67956445,3925.8,3925.6,1.3298]
[1733988731362,2.54731,3925.7,3925.6,1.3298]
[1733988731860,2.85731611,3925.7,3925.6,1.3298]
[1733988732277,2.85731611,3925.7,3925.3,1.2774]
[1733988733836,2.54745,3925.5,3925.3,1.2774]
[1733988735013,0.31000611,3925.7,3925.3,1.2774]
[1733988735306,2.54734,3925.7,3925.3,1.2774]
[1733988736902,2.54738,3925.6,3925.3,1.2774]
[1733988737256,0.13228445,3925.8,3925.3,1.2774]
[1733988737457,2.54744,3925.5,3925.3,1.2774]
[1733988738780,2.81923036,3926.2,3925.3,1.2774]
[1733988738781,1.06453036,3926.6,3925.4,1.32206374]
[1733988738980,0.23746266,3926.5,3925.8,1.2774]
[1733988739203,2.54665,3926.8,3925.8,1.2774]
[1733988739406,0.37996905,3926.9,3926.0,1.32206374]
[1733988739407,0.65062588,3926.7,3926.0,1.32206374]
[1733988739604,0.41313191,3926.7,3926.1,1.2774]
[1733988740292,2.5468,3926.5,3926.1,1.2774]
[1733988741105,0.23750719,3926.4,3926.1,1.2774]
[1733988741403,2.5468,3926.5,3926.1,1.2774]
[1733988741571,0.41646319,3926.4,3926.1,1.2774]
[1733988742610,0.23752785,3926.3,3925.8,1.2246]
[1733988742809,0.41646319,3926.4,3925.8,1.2246]
[1733988743106,2.78445137,3926.3,3925.8,1.2246]
[1733988743314,0.23749137,3926.2,3925.8,1.2246]
[1733988743564,2.90509591,3926.2,3925.8,1.2246]
[1733988743742,0.23750714,3926.1,3925.8,1.2246]
[1733988743943,0.41646319,3926.4,3925.8,1.2246]
[1733988744255,1.61783191,3926.7,3925.8,1.2246]
[1733988744256,2.78448514,3926.3,3925.8,1.2246]
[1733988744408,2.54696,3926.3,3925.8,1.2246]
[1733988745167,0.23755791,3926.2,3925.8,1.2246]
[1733988745304,2.54696,3926.3,3925.8,1.2246]
[1733988745505,0.23760703,3926.2,3925.8,1.2246]
[1733988745770,2.54696,3926.3,3925.8,1.2246]
[1733988745925,0.53031905,3926.2,3925.8,1.2246]
[1733988746121,2.54706,3926.1,3925.8,1.2246]
[1733988746441,2.78473282,3926.0,3925.5,2.54666374]
[1733988746658,2.54713,3926.0,3925.5,2.54666374]
[1733988746823,2.54713,3926.0,3925.5,1.2246]
[1733988747225,0.23765508,3925.9,3925.5,1.2246]
[1733988747430,2.54713,3926.0,3925.5,1.2246]
[1733988747652,0.23770314,3925.9,3925.5,1.2246]
[1733988747868,0.23769717,3925.8,3925.5,1.2246]
[1733988748033,2.54727,3925.8,3925.5,1.2246]
[1733988748245,0.254713,3926.0,3925.5,1.2246]
[1733988748246,2.54733,3925.7,3925.5,1.2246]
[1733988748459,2.8275343,3925.7,3925.2,1.3883611]
[1733988749564,0.23784896,3925.6,3925.2,1.3883611]
[1733988749768,2.8275343,3925.7,3925.2,1.3883611]
[1733988749966,0.23785015,3925.6,3925.2,1.3883611]
[1733988750172,2.8275343,3925.7,3925.2,1.3883611]
[1733988750346,0.23784952,3925.6,3925.2,1.3883611]
[1733988750547,2.8275343,3925.7,3925.2,1.3883611]
[1733988750743,0.23784974,3925.6,3925.2,1.3883611]
[1733988750970,2.8275343,3925.7,3925.2,1.3883611]
[1733988751143,0.23785235,3925.6,3925.2,1.3883611]
[1733988751354,2.8275343,3925.7,3925.2,1.3883611]
[1733988751655,0.2378649,3925.6,3925.2,1.3883611]
[1733988751968,2.8275343,3925.7,3925.2,1.3883611]
[1733988752139,0.23787439,3925.6,3925.2,1.3883611]
[1733988752339,2.8275343,3925.7,3925.2,1.3883611]
[1733988752536,0.23787082,3925.6,3925.2,1.3883611]
[1733988752759,0.2802043,3925.7,3925.2,1.3883611]
[1733988752937,2.7852621,3925.6,3925.2,1.3883611]
[1733988753137,2.54739,3925.6,3925.2,1.3883611]
[1733988754449,0.23784643,3925.5,3925.2,1.3883611]
[1733988754646,2.54739,3925.6,3925.2,1.3883611]
[1733988754855,3.04004332,3925.5,3925.2,0.1637611]
[1733988755039,2.54746,3925.5,3925.2,0.1637611]
[1733988757243,0.38049453,3925.8,3925.2,0.1637611]
[1733988757470,2.54731,3925.8,3925.2,0.1637611]
[1733988757670,0.23779656,3925.7,3925.2,0.1637611]
[1733988757871,0.30398196,3925.7,3925.2,0.1637611]
[1733988758778,0.23778057,3925.6,3925.2,0.1637611]
[1733988758978,0.30398196,3925.7,3925.2,0.1637611]
[1733988759194,0.23775919,3925.6,3925.2,0.1637611]
[1733988759493,2.85131196,3925.7,3925.2,0.1637611]
[1733988759681,0.23776135,3925.6,3925.2,0.1637611]
[1733988759886,2.54733,3925.7,3925.2,0.1637611]
[1733988760062,0.23774964,3925.6,3925.2,0.1637611]
[1733988760262,2.54733,3925.7,3925.3,1.2246]
[1733988760462,2.8275343,3925.7,3925.3,1.2246]
[1733988760687,0.23774475,3925.6,3925.3,1.2246]
[1733988760887,2.8275343,3925.7,3925.3,1.2246]
[1733988761091,0.23774536,3925.6,3925.3,1.2246]
[1733988761297,2.8275343,3925.7,3925.3,1.2246]
[1733988761463,0.23774271,3925.6,3925.3,1.2246]
[1733988761666,2.8275343,3925.7,3925.3,1.2246]
[1733988761864,0.55853593,3925.6,3925.3,1.2246]
[1733988762063,0.32079196,3925.6,3925.3,1.2246]
[1733988765896,2.86818196,3925.6,3925.3,1.2246]
[1733988766689,2.54757,3925.3,3925.2,0.1637611]
[1733988766893,4.52584703,3925.3,3925.2,0.1637611]
[1733988767210,7.65741596,3925.3,3925.2,0.1637611]
[1733988767529,1.2014,3924.5,3924.0,1.06697786]
[1733988767828,6.45601596,3925.3,3923.6,1.06697786]
[1733988767829,1.2014,3924.1,3923.6,1.06697786]
[1733988768163,1.2014,3924.1,3923.3,1.06697786]
[1733988768164,2.54861,3923.7,3923.3,1.06697786]
[1733988768287,0.27861003,3923.7,3923.1,1.2246]
[1733988768484,1.58089505,3924.1,3923.1,1.2246]
[1733988768787,2.54865,3923.7,3923.1,1.2246]
[1733988768993,0.23717089,3923.6,3923.1,1.2246]
[1733988769249,2.54881,3923.4,3923.1,1.2246]
[1733988769745,0.254881,3923.4,3922.8,1.2246]
[1733988769901,2.54855,3923.8,3922.8,1.2246]
[1733988769902,2.54895,3923.2,3922.8,1.2246]
[1733988770593,2.54895,3923.2,3922.7,0.3018462]
[1733988771188,1.2014,3923.4,3922.7,0.3018462]
[1733988771505,2.54896,3923.2,3922.7,0.3018462]
[1733988771698,2.54896,3923.2,3922.5,1.2246]
[1733988771899,0.375036,3923.1,3922.5,1.2246]
[1733988772228,0.375036,3923.1,3922.2,1.62390994]
[1733988772229,0.55,3922.8,3922.2,0.3018462]
[1733988772521,1.2204,3922.7,3921.9,1.2246]
[1733988772727,0.55,3922.6,3921.9,1.2246]
[1733988773022,0.17704,3922.5,3921.6,0.50193029]
[1733988773226,2.72645,3922.5,3921.6,0.50193029]
[1733988773429,0.55,3922.4,3921.5,0.49765204]
[1733988773602,0.17704,3922.5,3921.5,0.49765204]
[1733988773803,1.2204,3922.7,3921.5,0.49765204]
[1733988774428,0.55,3923.0,3921.6,1.1636]
[1733988774841,0.55,3923.0,3921.6,3.71357]
[1733988774842,3.09908,3923.0,3921.6,3.71357]
[1733988775222,3.09908,3923.0,3921.5,0.49765204]
[1733988775223,1.199,3923.1,3921.7,3.98331772]
[1733988775537,1.199,3923.1,3922.2,1.1636]
[1733988775538,0.374792,3923.1,3922.2,1.1636]
[1733988775740,0.55,3923.4,3922.2,1.1636]
[1733988776304,3.09882,3923.4,3922.2,1.1636]
[1733988776716,0.55,3923.2,3922.2,1.1636]
[1733988777801,2.54888,3923.3,3922.2,1.1636]
[1733988778235,0.55,3923.4,3922.2,1.1636]
[1733988778435,2.54909,3923.0,3922.2,1.1636]
[1733988778656,0.55,3922.8,3921.3,1.3273611]
[1733988779412,2.54946,3922.4,3921.3,1.84136157]
[1733988779615,2.54962,3922.2,3921.3,1.84136157]
[1733988779804,0.55,3922.4,3921.4,1.1636]
[1733988780000,0.309942,3922.3,3921.4,1.1636]
[1733988780231,2.54953,3922.3,3921.4,1.1636]
[1733988780404,0.55,3922.6,3921.4,1.1636]
[1733988780732,2.54974,3922.0,3921.4,1.1636]
[1733988781560,2.54974,3922.0,3921.3,0.1637611]
[1733988781561,2.54907,3923.0,3921.5,2.55]
[1733988781701,1.199,3923.1,3921.6,1.1636]
[1733988782032,2.54929,3922.7,3921.6,1.1636]
[1733988783026,0.55,3922.9,3921.6,1.1636]
[1733988783334,3.09916,3922.9,3921.6,2.54997]
[1733988783541,3.09916,3922.9,3921.7,1.1636]
[1733988783742,0.443555,3922.8,3921.7,1.1636]
[1733988785630,0.443555,3922.8,3921.7,3.71349]
[1733988785933,0.13739,3923.0,3921.8,1.1636]
[1733988785934,2.68646,3923.0,3921.8,1.1636]
[1733988786128,2.68646,3923.0,3921.3,3.1637611]
[1733988786129,0.13739,3923.0,3922.0,2.81971772]
[1733988786459,2.54881,3923.4,3922.3,1.1636]
[1733988788671,2.54928,3922.7,3922.3,1.1636]
[1733988788953,0.55,3922.7,3921.6,1.1829]
[1733988789141,2.54949,3922.4,3921.6,1.1829]
[1733988789360,0.254949,3922.3,3921.6,1.1829]
[1733988789724,2.804529,3922.3,3921.6,1.1829]
[1733988790063,2.54959,3922.2,3921.6,1.1829]
[1733988790226,2.54976,3922.0,3921.6,1.1829]
[1733988790776,0.55,3922.2,3921.6,1.1829]
[1733988790957,2.54978,3921.9,3921.6,1.1829]
[1733988791269,0.254978,3921.8,3921.6,1.1829]
[1733988791770,2.54928,3922.7,3921.6,1.1829]
[1733988793043,2.54914,3922.9,3921.6,1.1829]
[1733988793242,0.23601707,3922.8,3921.6,1.1829]
[1733988793674,1.2157,3922.9,3921.6,1.1829]
[1733988793675,2.54942,3922.5,3921.6,1.1829]
[1733988793956,0.27854322,3922.4,3921.6,1.1829]
[1733988794480,2.82801322,3922.4,3921.6,1.1829]
[1733988795433,0.27854322,3922.4,3921.6,1.1829]
[1733988796199,1.2157,3922.9,3921.6,1.1829]
[1733988796200,2.54971,3922.1,3921.6,1.1829]
[1733988796331,2.54978,3921.9,3921.6,1.1829]
[1733988796529,0.23690826,3921.8,3921.6,1.1829]
[1733988796741,2.54978,3921.9,3921.6,1.1829]
[1733988796959,0.23690914,3921.8,3921.6,1.1829]
[1733988797172,2.54978,3921.9,3921.6,1.1829]
[1733988797478,0.23720338,3921.8,3921.6,1.1829]
[1733988797646,2.804758,3921.9,3921.6,1.1829]
[1733988797647,0.23720338,3921.7,3921.6,1.1829]
[1733988798880,0.61686976,3921.7,3921.6,1.1829]
[1733988799066,2.804758,3921.9,3921.6,1.1829]
[1733988799264,0.61690192,3921.8,3921.6,1.1829]
[1733988799452,0.34216599,3921.8,3921.6,1.1829]
[1733988799644,0.61701927,3921.7,3921.6,1.1829]
[1733988801186,0.2373151,3921.7,3921.6,1.1829]
[1733988801362,0.61721432,3921.7,3921.6,1.1829]
[1733988803885,0.61721432,3921.7,3921.3,0.1637611]
[1733988804090,3.16721432,3921.6,3921.3,0.1637611]
[1733988804315,0.2373151,3921.5,3921.3,0.1637611]
[1733988804608,0.2373151,3921.4,3921.3,0.1637611]
[1733988808527,2.55005,3921.5,3921.3,0.1637611]
[1733988808830,0.23738293,3921.4,3921.3,0.1637611]
[1733988809127,0.23738618,3921.4,3921.3,0.1637611]
[1733988810291,2.54988,3921.8,3921.3,0.1637611]
[1733988810466,0.49236514,3921.7,3921.3,0.1637611]
[1733988810666,0.23737714,3921.6,3921.3,0.1637611]
[1733988810903,0.23737714,3921.5,3921.3,0.1637611]
[1733988811231,0.23737714,3921.4,3921.3,0.1637611]
[1733988811401,0.254988,3921.7,3921.3,0.1637611]
[1733988811716,2.55007,3921.5,3921.3,0.1637611]
[1733988811906,2.5501,3921.4,3921.3,0.1637611]
[1733988812207,2.78745768,3921.4,3921.3,0.1637611]
[1733988812390,3.16717909,3921.4,3921.3,0.1637611]
[1733988814569,0.23735768,3921.4,3921.3,0.1637611]
[1733988814969,2.54996,3921.7,3921.3,0.1637611]
[1733988815199,0.87181216,3921.6,3921.3,0.1637611]
[1733988815400,0.23723687,3921.5,3921.3,0.1637611]
[1733988815577,0.23723687,3921.4,3921.3,0.1637611]
[1733988816017,0.254996,3921.6,3921.3,0.1637611]
[1733988816195,0.23718509,3921.5,3921.3,0.1637611]
[1733988816508,0.5414012,3921.4,3921.3,0.1637611]
[1733988818110,0.30421611,3921.4,3921.3,0.1637611]
[1733988818410,0.54152159,3921.4,3921.3,0.1637611]
[1733988818609,0.77891583,3921.4,3921.3,0.1637611]
[1733988819585,0.54161035,3921.4,3921.3,0.1637611]
[1733988820373,0.23739424,3921.4,3921.3,0.1637611]
[1733988820673,2.03628041,3921.5,3921.3,0.1637611]
[1733988821587,2.03628041,3921.5,3921.4,1.1808]
[1733988822007,2.54991,3921.8,3921.4,1.1808]
[1733988822301,2.54993,3921.7,3921.4,1.1808]
[1733988826678,1.195,3922.1,3921.4,1.1808]
[1733988826962,0.38041406,3922.0,3921.4,1.1808]
[1733988827106,2.54961,3922.2,3921.4,1.1808]
[1733988827946,0.3804264,3922.1,3921.4,1.1808]
[1733988828119,2.54961,3922.2,3921.4,1.1808]
[1733988828321,0.38043784,3922.1,3921.4,1.1808]
[1733988828530,2.54943,3922.5,3921.4,1.1808]
[1733988828800,2.25958954,3922.8,3921.4,1.1808]
[1733988828801,0.38046361,3922.4,3921.5,1.06697786]
[1733988828968,3.74424,3922.8,3921.5,1.06697786]
[1733988828969,0.38049207,3922.7,3921.7,2.24777786]
[1733988829254,2.54924,3922.8,3921.8,1.1808]
[1733988829469,0.38036753,3922.7,3921.8,1.1808]
[1733988829756,0.38036753,3922.6,3921.8,1.1808]
[1733988829965,2.54927,3922.7,3921.8,1.1808]
[1733988830156,0.38038188,3922.6,3921.8,1.1808]
[1733988830357,2.54927,3922.7,3921.8,1.1808]
[1733988831063,0.55,3922.4,3921.6,1.06697786]
[1733988831360,0.55,3922.4,3921.3,1.3445611]
[1733988831361,2.54983,3921.9,3921.3,1.3445611]
[1733988831577,2.54987,3921.8,3921.3,1.3445611]
[1733988832072,0.38023101,3922.1,3921.3,1.3445611]
[1733988832375,2.5496,3922.2,3921.4,2.24777786]
[1733988832655,2.5496,3922.2,3921.5,1.06697786]
[1733988832855,2.5496,3922.2,3921.4,2.24777786]
[1733988833227,0.23764917,3922.1,3921.4,2.24777786]
[1733988833422,2.5496,3922.2,3921.4,2.24777786]
[1733988833662,0.23763379,3922.1,3921.4,2.24777786]
[1733988833962,2.5496,3922.2,3921.4,2.24777786]
[1733988834173,0.2376339,3922.0,3921.4,2.24777786]
[1733988834469,2.5496,3922.2,3921.5,1.06697786]
[1733988834635,0.237624,3922.1,3921.5,1.06697786]
[1733988834831,2.5496,3922.2,3921.5,1.06697786]
[1733988835043,2.54941,3922.5,3921.5,1.06697786]
[1733988835239,0.23764786,3922.4,3921.6,1.06697786]
[1733988835441,0.23764786,3922.3,3921.5,1.06697786]
[1733988835641,0.23764786,3922.2,3921.6,1.06697786]
[1733988835972,0.23761266,3922.1,3921.4,2.24777786]
[1733988836150,0.23761266,3922.0,3921.4,1.1808]
[1733988836353,0.23761266,3921.9,3921.4,1.1808]
[1733988836563,2.54969,3922.1,3921.4,1.1808]
[1733988836780,0.23760306,3922.0,3921.4,1.1808]
[1733988837080,0.23760306,3921.9,3921.4,1.1808]
[1733988837238,2.54969,3922.1,3921.4,1.1808]
[1733988837441,0.23759975,3922.0,3921.4,1.1808]
[1733988837641,0.23759975,3921.9,3921.4,1.1808]
[1733988837878,2.54969,3922.1,3921.4,1.1808]
[1733988838181,0.23759355,3922.0,3921.4,1.1808]
[1733988838478,2.78737355,3921.9,3921.4,1.1808]
[1733988838806,1.0578,3922.3,3921.4,2.24777786]
[1733988838996,1.0578,3922.3,3921.4,1.1808]
[1733988838997,1.08492176,3922.2,3921.4,1.1808]
[1733988839283,2.54997,3921.6,3921.3,0.1637611]
[1733988839488,3.60777,3921.6,3921.3,0.1637611]
[1733988839774,1.0578,3921.6,3921.3,0.1637611]
[1733988840176,3.60768,3921.8,3921.3,0.1637611]
[1733988840339,1.0578,3921.8,3921.3,0.1637611]
[1733988840542,2.54998,3921.6,3921.3,0.1637611]
[1733988843445,2.54984,3921.9,3921.3,1.23073896]
[1733988843649,2.54991,3921.7,3921.3,0.1637611]
[1733988844758,1.0578,3922.0,3921.3,0.1637611]
[1733988844956,2.55,3921.6,3921.3,0.1637611]
[1733988846113,1.06458954,3922.5,3921.4,3.47493816]
[1733988846384,2.54967,3922.1,3921.4,3.47493816]
[1733988846591,0.23754326,3922.0,3921.4,3.47493816]
[1733988846894,5.59379743,3922.7,3921.3,0.1637611]
[1733988846895,0.38012821,3922.5,3921.8,4.06697786]
[1733988847051,1.0578,3923.4,3922.4,4.0807]
[1733988847052,0.23762531,3922.9,3922.4,4.0807]
[1733988847247,0.38020132,3923.3,3922.5,1.06805794]
[1733988847598,2.66175139,3924.1,3922.6,2.14875794]
[1733988847599,0.38020132,3923.5,3922.6,2.14875794]
[1733988847747,0.3800476,3923.8,3922.9,1.0807]
[1733988847947,0.23753781,3923.7,3923.0,1.06805794]
[1733988848183,0.38007274,3924.0,3923.0,1.06805794]
[1733988848383,1.0578,3924.1,3923.1,2.26532599]
[1733988848384,2.54858,3923.8,3923.1,2.26532599]
[1733988848547,2.54858,3923.8,3923.0,1.06805794]
[1733988848751,2.54858,3923.8,3922.9,4.0807]
[1733988848752,2.54858,3923.8,3923.1,1.196263]
[1733988848987,2.54858,3923.8,3922.9,5.14875794]
[1733988849208,2.54841,3924.0,3923.0,1.19628233]
[1733988849414,2.54863,3923.7,3922.9,4.0807]
[1733988849606,2.54863,3923.7,3922.9,1.0807]
[1733988850695,2.54849,3923.9,3922.9,1.0807]
[1733988850896,0.13286761,3924.2,3922.9,1.0807]
[1733988851103,2.54851,3923.9,3923.1,1.1333]
[1733988852223,4.41727076,3924.9,3922.8,0.50510765]
[1733988852224,2.15898954,3925.0,3923.5,3.0]
[1733988852406,2.5479,3924.8,3923.9,1.1333]
[1733988852596,2.5479,3924.8,3923.9,4.1333]
[1733988857042,2.54728,3925.8,3923.9,4.1333]
[1733988857043,1.1279,3925.7,3924.0,1.0588]
[1733988857223,2.54754,3925.4,3924.3,3.0]
[1733988857398,2.54754,3925.4,3924.4,1.0588]
[1733988858404,0.13286218,3925.6,3924.7,1.0588]
[1733988859236,2.68025218,3925.6,3924.7,1.0588]
[1733988860153,2.68025218,3925.6,3924.7,4.0588]
[1733988860441,0.13286218,3925.6,3924.7,4.0588]
[1733988860642,0.13286218,3925.6,3924.7,1.0588]
[1733988860811,2.54764,3925.2,3924.7,1.0588]
[1733988862139,0.13286218,3925.6,3924.7,1.0588]
[1733988862303,1.1279,3925.4,3923.8,2.81818434]
[1733988862507,2.54757,3925.3,3923.9,1.0588]
[1733988862821,0.13286218,3925.6,3923.9,1.0588]
[1733988862822,2.5483,3924.2,3923.9,1.0588]
[1733988863741,2.54813,3924.5,3923.9,1.0588]
[1733988864465,5.87303646,3926.0,3923.9,1.0588]
[1733988864466,1.1279,3925.4,3923.9,1.0588]
[1733988864786,2.54778,3925.0,3924.0,1.0588]
[1733988865187,1.1279,3925.4,3924.0,1.0588]
[1733988865547,2.5481,3924.5,3924.0,1.0588]
[1733988866064,2.54764,3925.2,3924.0,1.0588]
[1733988866264,2.54779,3925.0,3924.0,1.0588]
[1733988866450,2.54757,3925.3,3924.0,1.0588]
[1733988866646,2.5478,3925.0,3924.0,1.0588]
[1733988866965,2.54784,3924.9,3924.0,1.0588]
[1733988867863,2.54791,3924.8,3924.0,1.0588]
[1733988868284,0.38083322,3925.3,3924.0,1.0588]
[1733988868561,0.13286218,3925.6,3924.0,1.0588]
[1733988868927,0.14190071,3925.5,3924.0,1.0588]
[1733988869286,2.54773,3925.1,3924.0,1.0588]
[1733988869788,2.54773,3925.1,3924.2,0.49688522]
[1733988869933,2.54773,3925.1,3924.3,1.1266]
[1733988870279,0.14190071,3925.5,3924.3,1.1266]
[1733988870280,2.54759,3925.3,3924.3,1.1266]
[1733988870434,2.54765,3925.2,3924.3,1.1266]
[1733988871642,2.54749,3925.5,3924.3,1.1266]
[1733988873663,2.54762,3925.3,3924.3,1.1266]
[1733988873862,2.54765,3925.2,3924.3,1.1266]
[1733988876188,0.37867834,3925.5,3924.3,1.1266]
[1733988876491,3.1631989,3925.4,3924.3,1.1266]
[1733988876650,0.23700056,3925.3,3924.3,1.1266]
[1733988876833,0.23700056,3925.2,3924.3,1.1266]
[1733988877033,2.54752,3925.4,3924.3,1.1266]
[1733988877255,0.23729545,3925.3,3924.4,1.1266]
[1733988877452,0.23729545,3925.2,3924.4,1.1266]
[1733988877731,0.23729545,3925.1,3924.4,1.1266]
[1733988877986,2.54752,3925.4,3924.4,1.1266]
[1733988878183,0.23743123,3925.3,3924.4,1.1266]
[1733988878393,0.23743123,3925.2,3924.4,1.1266]
[1733988878690,0.23743123,3925.1,3924.4,1.1266]
[1733988878898,2.54752,3925.4,3924.4,1.1266]
[1733988879079,0.23749052,3925.3,3924.4,1.1266]
[1733988879286,0.23749052,3925.2,3924.4,1.1266]
[1733988879453,0.23749052,3925.1,3924.4,1.1266]
[1733988879653,0.13286218,3925.6,3924.4,1.1266]
[1733988879654,0.38012825,3925.5,3924.5,1.1266]
[1733988879856,0.13286218,3925.6,3924.6,1.1266]
[1733988879857,0.23758645,3925.4,3924.6,1.1266]
[1733988880079,0.23758645,3925.3,3924.6,1.1266]
[1733988880288,2.68024218,3925.6,3924.6,1.1266]
[1733988880497,0.23758811,3925.2,3924.6,1.1266]
[1733988880696,2.68024218,3925.6,3924.6,1.1266]
[1733988880963,0.61796749,3925.5,3924.6,1.1266]
[1733988881173,0.61796517,3925.4,3924.6,1.1266]
[1733988881400,0.2376798,3925.3,3924.6,1.1266]
[1733988881709,0.2376798,3925.2,3924.7,0.51206966]
[1733988881874,0.2376798,3925.1,3924.7,0.51206966]
[1733988882058,0.23779307,3925.0,3924.7,0.51206966]
[1733988882304,0.13286218,3925.6,3924.6,1.1266]
[1733988882459,0.61835396,3925.5,3924.6,1.1266]
[1733988882658,0.61835396,3925.4,3924.6,1.63505386]
[1733988882873,0.23782953,3925.3,3924.6,1.63505386]
[1733988883075,0.23782953,3925.2,3924.7,1.1266]
[1733988883324,0.23782953,3925.1,3924.7,1.1266]
[1733988883525,0.13286218,3925.6,3924.7,1.1266]
[1733988883833,0.61804808,3925.5,3924.7,1.1266]
[1733988884122,0.38033072,3925.4,3924.7,1.1266]
[1733988884334,0.2377067,3925.3,3924.7,1.1266]
[1733988884534,2.68025218,3925.6,3924.7,1.1266]
[1733988884535,0.2377067,3925.2,3924.7,1.1266]
[1733988884677,0.2377067,3925.1,3924.7,1.1266]
[1733988884878,2.54748,3925.5,3924.7,1.1266]
[1733988885224,0.61805911,3925.4,3924.7,1.1266]
[1733988885423,0.23771504,3925.3,3924.7,1.1266]
[1733988885633,0.23771504,3925.2,3924.7,1.1266]
[1733988885775,0.23771504,3925.1,3924.7,1.1266]
[1733988885975,2.54748,3925.5,3924.7,1.1266]
[1733988886228,0.23771115,3925.4,3924.7,1.1266]
[1733988886374,2.54748,3925.5,3924.7,1.1266]
[1733988886375,0.23771115,3925.3,3924.7,1.1266]
[1733988886726,2.54748,3925.5,3924.7,1.1266]
[1733988886727,0.23771115,3925.2,3924.7,1.1266]
[1733988887019,2.54748,3925.5,3924.7,1.1266]
[1733988887185,0.61803611,3925.4,3924.7,1.1266]
[1733988887524,0.23770405,3925.3,3924.7,1.1266]
[1733988887742,0.23770405,3925.2,3924.7,1.1266]
[1733988887878,2.54748,3925.5,3924.7,1.1266]
[1733988888233,0.23769907,3925.4,3924.7,1.1266]
[1733988888528,0.23769907,3925.3,3924.7,1.1266]
[1733988888832,0.23769907,3925.2,3924.7,1.1266]
[1733988889050,2.54748,3925.5,3924.7,1.1266]
[1733988889191,0.23771092,3925.4,3924.7,1.1266]
[1733988889392,0.23771092,3925.3,3924.7,1.1266]
[1733988889626,0.23771092,3925.2,3924.7,1.1266]
[1733988889777,2.54731,3925.7,3924.7,1.1266]
[1733988890103,3.16547551,3925.6,3924.7,1.1266]
[1733988890300,0.23772135,3925.5,3924.7,1.1266]
[1733988890488,2.5474,3925.6,3924.7,1.1266]
[1733988890489,0.23772135,3925.4,3924.7,1.1266]
[1733988890694,0.23772135,3925.3,3924.7,1.1266]
[1733988890890,2.5474,3925.6,3924.7,1.1266]
[1733988891093,0.23771139,3925.5,3924.7,1.1266]
[1733988891381,0.23771139,3925.4,3925.0,1.0511]
[1733988891578,0.23771139,3925.3,3925.0,1.0511]
[1733988891801,2.5474,3925.6,3925.0,1.0511]
[1733988892014,0.23773848,3925.5,3925.0,1.0511]
[1733988892307,0.23773848,3925.4,3925.0,1.0511]
[1733988892475,0.23773848,3925.3,3925.0,1.0511]
[1733988892676,2.5474,3925.6,3925.0,1.0511]
[1733988892915,2.54752,3925.4,3925.0,1.0511]
[1733988893528,2.54764,3925.2,3925.0,1.0511]
[1733988893678,2.54764,3925.2,3924.7,3.0]
[1733988893679,2.54778,3925.0,3924.7,1.0576]
[1733988893880,0.23777356,3924.9,3924.7,1.0576]
[1733988894152,2.54778,3925.0,3924.7,1.0576]
[1733988894357,0.23777392,3924.9,3924.7,1.0576]
[1733988894575,2.54778,3925.0,3924.7,1.0576]
[1733988894865,0.23784056,3924.9,3924.5,0.50354051]
[1733988895004,2.54778,3925.0,3924.5,0.50354051]
[1733988895207,0.23783756,3924.9,3924.5,0.50354051]
[1733988895516,0.23783756,3924.8,3924.5,0.50354051]
[1733988895714,2.54778,3925.0,3924.5,0.50354051]
[1733988895914,0.23789346,3924.9,3924.5,0.50354051]
[1733988896240,2.54778,3925.0,3924.5,0.50354051]
[1733988896443,0.23789386,3924.9,3924.5,0.50354051]
[1733988896749,0.23789386,3924.8,3924.5,0.50354051]
[1733988897035,2.54778,3925.0,3924.5,0.50354051]
[1733988897235,0.23800432,3924.9,3924.5,0.50354051]
[1733988897446,0.23800432,3924.8,3924.5,0.50354051]
[1733988897601,2.54778,3925.0,3924.5,0.50354051]
[1733988897819,0.23803013,3924.9,3924.5,0.50354051]
[1733988898018,0.23803013,3924.8,3924.5,0.50354051]
[1733988898235,2.54778,3925.0,3924.5,0.50354051]
[1733988898452,0.23806559,3924.9,3924.5,0.50354051]
[1733988898620,0.23806559,3924.8,3924.5,0.50354051]
[1733988898818,2.54778,3925.0,3924.5,0.50354051]
[1733988899024,0.23806981,3924.9,3924.5,0.50354051]
[1733988899229,1.0228,3925.4,3924.5,0.50354051]